Cogmind - Beta 16.1 @@@ ROGUE MODE // 2026.02.17 @ 23:33:02 Player: APerTAS Result: Destroyed by H-66 Slayer with Gauss Rifle Performance ------------- Evolutions (4) 2000 Regions Visited (7) 1400 Robots Destroyed (17) 85 Value Destroyed (699) 699 Prototype IDs (3) 60 Alien Tech Used (0) 0 Bonus (834) 834 TOTAL SCORE: 5078 Bonus ------- Pacifist 834 Cogmind --------- Core Integrity 0/850 Matter 300/300 Energy 84/100 System Corruption 15% Temperature Cool (0) Movement Core (100) Ox1 Location -6/Lower Caves Parts ------- > --- POWER (7) -------- (None) > --- PROPULSION (4) --- (None) > --- UTILITY (2) ------ (None) > --- WEAPON (2) ------- Heavy Laser > --- INVENTORY (5) ---- Wheel Improved Remote Datajack Peak State ------------ > --- POWER ------------ Ion Engine Light Ion Engine Nuclear Core Nuclear Core Nuclear Core Nuclear Core Nuclear Core > --- PROPULSION ------- Wheel Armored Wheel > --- UTILITY ---------- Improved Heat Sink Improved Light Armor Plating > --- WEAPON ----------- Light EM Pulse Cannon Powered Hammer > --- INVENTORY -------- Improved VTOL Module Improved Cesium-ion Thruster Enhanced Autogun Plasma Cutter [Rating: 33] Favorites ----------- Power Nuclear Core Engine Ion Engine Power Core Nuclear Core Propulsion Wheel Treads Light Treads Wheel Wheel Flight Unit Improved VTOL Module Utility Improved Heat Sink Device Improved Heat Sink Processor Visual Processing Unit Hackware System Shield Protection Improved Light Armor Plating Weapon Powered Hammer Energy Gun Heavy Laser Energy Cannon Light EM Pulse Cannon Ballistic Gun Enhanced Autogun Special Weapon Plasma Cutter Impact Weapon Powered Hammer Build | -11 -10 -9 -9 -8 -7 -6 -6 ------- Run | Yrd Mat Mat Min Mat Fac Fac Low Slots Evolved 8 | . . 2 . 2 2 2 . Power 6 | . . 2 . 2 2 . . Propulsion 2 | . . . . . . 2 . Utility . | . . . . . . . . Weapon . | . . . . . . . . Parts Attached 28 | . 2 . . 4 20 . 2 Power 8 | . . . . 1 7 . . Engine 2 | . . . . 1 1 . . Core 6 | . . . . . 6 . . Reactor . | . . . . . . . . Propulsion 5 | . . . . 1 4 . . Treads 1 | . . . . . 1 . . Leg . | . . . . . . . . Wheel 2 | . . . . . 2 . . Hover . | . . . . . . . . Flight 2 | . . . . 1 1 . . Utility 10 | . 2 . . 1 7 . . Device 5 | . . . . . 5 . . Storage . | . . . . . . . . Processor 2 | . 2 . . . . . . Hackware 1 | . . . . 1 . . . Protection 2 | . . . . . 2 . . Artifact . | . . . . . . . . Weapon 5 | . . . . 1 2 . 2 Energy Gun 1 | . . . . . . . 1 Energy Cannon 1 | . . . . . 1 . . Ballistic Gun 1 | . . . . 1 . . . Ballistic Cannon . | . . . . . . . . Launcher . | . . . . . . . . Special Weapon 1 | . . . . . . . 1 Impact Weapon 1 | . . . . . 1 . . Slashing Weapon . | . . . . . . . . Piercing Weapon . | . . . . . . . . Special Melee Weapon . | . . . . . . . . Unidentified Prototypes 3 | . . . . 2 1 . . Corrupted Parts 1 | . . . . . . . 1 System Corruption 12 | . . . . . . . 12 Parts Lost 16 | . . . . . 11 4 1 Power 8 | . . . . . 7 1 . Propulsion 2 | . . . . . 1 1 . Utility 4 | . . . . . 2 2 . Weapon 2 | . . . . . 1 . 1 Highest Loss Streak 5 | . . . . . 5 4 1 To Critical Strikes . | . . . . . . . . Average Backups 3 | 1 3 3 3 4 3 4 2 Power . | 1 2 2 2 1 . . . Propulsion . | . . . . . 1 1 . Utility . | . . . . 1 . 1 . Weapon . | . . . . . . 1 . Tool/Special . | . . . . . . . . Unused Backups 7 | . 1 2 . . . . 4 Power . | . . . . . . . . Propulsion 1 | . . . . . . . 1 Utility 3 | . . 2 . . . . 1 Weapon 2 | . 1 . . . . . 1 Tool/Special 1 | . . . . . . . 1 Average Slot Usage (%) 51 | . 10 22 22 33 81 42 2 Engine 5 | . . . . 7 9 . . Core 18 | . . . . . 33 5 . Wheel 5 | . . . . . 9 6 . Device 5 | . . . . . 8 5 . Processor 3 | . 10 22 22 12 . . . Protection 1 | . . . . . 2 5 . Energy Cannon 2 | . . . . . 4 . . Ballistic Gun 1 | . . . . . 1 6 . Impact Weapon 4 | . . . . . 6 6 . Peak Build Rating 33 | . 4 4 4 14 33 21 6 Average Rating 18 | . 1 4 4 9 29 19 1 On Entrance 6 | . . 4 4 4 11 21 10 Avg Prop Armor Cover (%) 13 | . . . . . 8 13 30 Naked Turns 191 | . 42 . . . . . 149 Heaviest Build 54 | . . . . 3 54 16 4 Greatest Support 22 | 3 3 3 3 5 22 12 3 Greatest Overweight (x) 5 | . . . . . 5 1 1 Average Overweight (x) 1 | . . . . . 2 . . Largest Inventory Capacity 5 | 5 5 5 5 5 5 5 5 Average Capacity 5 | 5 5 5 5 5 5 5 5 Most Carried 5 | 2 5 4 3 5 5 4 4 Average Carried 3 | 1 3 3 3 4 3 4 2 Final Capacity 5 | 5 5 5 5 5 5 5 5 Final Carried 5 | 2 5 3 3 5 4 4 2 Class Distribution -------------------- 53% | Generator-Mutant 46% | Mutant Dominant Class ---------------- Mutant | -10/Materials Mutant | -9/Materials Mutant | -9/Mines Mutant | -8/Materials Generator-Mutant | -7/Factory Mutant | -6/Factory Mutant | -6/Lower Caves Resources | -11 -10 -9 -9 -8 -7 -6 -6 ----------- Run | Yrd Mat Mat Min Mat Fac Fac Low Matter Collected 551 | 153 . 67 . . 291 . 40 Remotely . | . . . . . . . . Salvage Created 735 | . . . . . 665 . 70 Parts 25 | . . . . . 24 . 1 Haulers Intercepted . | . . . . . . . . Recyclers Shooed 2 | . . . . . 2 . . Parts Field Recycled . | . . . . . . . . Retrieved Matter . | . . . . . . . . Parts Self-Destructed 3 | . . . . . . . 3 Prevented . | . . . . . . . . Parts Restored . | . . . . . . . . Kills | -11 -10 -9 -9 -8 -7 -6 -6 ------- Run | Yrd Mat Mat Min Mat Fac Fac Low Combat Hostiles Destroyed 12 | . . . . . 11 . 1 Melee 7 | . . . . . 7 . . Cannons 1 | . . . . . 1 . . Classes Destroyed 9 | . . . . . 8 . 1 Builder 1 | . . . . . 1 . . Tunneler 1 | . . . . . 1 . . Recycler 2 | . . . . . 2 . . Watcher 1 | . . . . . 1 . . Swarmer 4 | . . . . . 4 . . Grunt 1 | . . . . . . . 1 Sentry 3 | . . . . . 3 . . Hunter 2 | . . . . . 2 . . Programmer 2 | . . . . . 2 . . Best Kill Streak 4 | . . . . . 4 . 1 Combat Bots Only 4 | . . . . . 4 . 1 Max Kills in Single Turn 1 | . . . . . 1 . 1 Gunslinging . | . . . . . . . . Exploded . | . . . . . . . . Melee 1 | . . . . . 1 . . Uniques/NPCs Destroyed . | . . . . . . . . Combat | -11 -10 -9 -9 -8 -7 -6 -6 -------- Run | Yrd Mat Mat Min Mat Fac Fac Low Hostile Shots Fired 329 | . 5 . . 12 200 60 52 Missed 114 | . 2 . . 4 63 31 14 Hits 215 | . 3 . . 8 137 29 38 Projectile 215 | . 3 . . 8 137 29 38 AOE 1 | . . . . . 1 . . Critical Strikes 2 | . . . . . 1 . 1 Damage Taken 2639 | . 33 2 . 80 1462 213 849 Core 1282 | . 33 . . 66 329 62 792 Absorbed by Shields . | . . . . . . . . Redirected to Shielding 101 | . . . . . 75 26 . Core Remaining (%) 85 | 100 86 . 100 88 53 . . Volleys Fired 33 | . . . . . 25 . 8 Largest 1 | . . . . . 1 . 1 Hottest 69 | . . . . . 56 . 69 Shots Fired 33 | . . . . . 25 . 8 Gun 11 | . . . . . 9 . 2 Cannon 16 | . . . . . 16 . . Launcher . | . . . . . . . . Special 6 | . . . . . . . 6 Kinetic 9 | . . . . . 9 . . Thermal 8 | . . . . . . . 8 Explosive . | . . . . . . . . Electromagnetic 16 | . . . . . 16 . . Robot Hit Streak 4 | . . . . . 4 . 3 Robot Miss Streak 2 | . . . . . 2 . 2 Penetration Max . | . . . . . . . . Secondary Targets . | . . . . . . . . Shots Hit Robots 53 | . . . . . 46 2 5 Core Hits 23 | . . . . . 14 1 8 Critical Kills . | . . . . . . . . Critical Parts Destroyed 5 | . . . . . 4 1 . Critical Strikes 6 | . . . . . 5 1 . Smash 6 | . . . . . 5 1 . Melee Attacks 43 | . . . . . 40 3 . Impact 43 | . . . . . 40 3 . Slashing . | . . . . . . . . Piercing . | . . . . . . . . Sneak Attacks 4 | . . . . . 4 . . Combat Hostiles . | . . . . . . . . Follow-up Attacks . | . . . . . . . . Damage Inflicted 2099 | . . 4 . . 1774 65 256 Guns 109 | . . . . . 89 . 20 Cannons 129 | . . . . . 129 . . Explosions . | . . . . . . . . Melee 1618 | . . . . . 1556 62 . Ramming 199 | . . 4 . . . 3 192 Kinetic 89 | . . . . . 89 . . Thermal 64 | . . . . . . . 64 Explosive . | . . . . . . . . Electromagnetic 129 | . . . . . 129 . . Impact 1618 | . . . . . 1556 62 . Slashing . | . . . . . . . . Piercing . | . . . . . . . . Highest Corruption 15 | . . . . . 2 . 15 Average Corruption 5 | . . . . . 1 . 10 Corruption Purged . | . . . . . . . . Corruption Blocked . | . . . . . . . . Effects 7 | . . . . . 1 . 6 Message Errors 3 | . . . . . 1 . 2 Matter Fused 2 | . . . . . . . 2 Data Loss (minor) 2 | . . . . . . . 2 Overload Shots . | . . . . . . . . Overflow Damage 532 | . . . . . 502 29 1 Projectiles . | . . . . . . . . Explosions . | . . . . . . . . Melee 532 | . . . . . 502 29 1 Knockbacks 8 | . . . . . 5 . 3 Impact 8 | . . . . . 5 . 3 Kinetic . | . . . . . . . . Secondary . | . . . . . . . . Self-Inflicted Damage 86 | . . 2 . . . 1 83 Shots . | . . . . . . . . Rammed 67 | . . 1 . . . 1 65 Targets Rammed 67 | . . 1 . . . 1 65 Kicked . | . . . . . . . . Crushed . | . . . . . . . . Highest Temperature 212 | . . . . . 212 . . Average Temperature 46 | . . . . . 46 . . Received Heat Transfer 591 | . 18 . . 18 177 54 324 Siege Activations . | . . . . . . . . Martial Activations . | . . . . . . . . Shielding Activations . | . . . . . . . . Robots Disrupted 1 | . . . . . 1 . . Combat Hostiles 1 | . . . . . 1 . . Robots Corrupted 4 | . . . . . 3 . 1 Combat Hostiles 3 | . . . . . 2 . 1 Parts Fried 12 | . . . . . 9 . 3 Impact Corruptions 21 | . . . . . 19 1 1 Robots Melted . | . . . . . . . . Combat Hostiles . | . . . . . . . . Parts Melted 1 | . . . . . 1 . . Heat Transferred 185 | . . . . . . . 185 Parts Sabotaged . | . . . . . . . . Parts Stolen . | . . . . . . . . Parts Stripped . | . . . . . . . . Power Chain Reactions . | . . . . . . . . Alert | -11 -10 -9 -9 -8 -7 -6 -6 ------- Run | Yrd Mat Mat Min Mat Fac Fac Low Maximum Alert Level . | . . . . . . . . Low Security (%) 100 | 100 100 100 100 100 100 100 . Level 1 . | . . . . . . . . Level 2 . | . . . . . . . . Level 3 . | . . . . . . . . Level 4 . | . . . . . . . . Level 5 . | . . . . . . . . High Security . | . . . . . . . . Max Security . | . . . . . . . . Peak Influence 190 | . . . . . 134 190 . Initial 50 | . . . . . . 50 . Average 23 | . . . . . 25 115 . Influence Increases 555 | . . . . . 385 150 20 Destroy 0b10 Robot/C 240 | . . . . . 220 . 20 Destroy 0b10 Robot/NC 25 | . . . . . 25 . . Destroy Leader 82 | . . . . . 82 . . Successful Hack 5 | . . . . . 5 . . Select Force Hacks 20 | . . . . . 20 . . Anti-Garrison Action 150 | . . . . . . 150 . Destroy Structure 3 | . . . . . 3 . . Lose Combat Pursuer 30 | . . . . . 30 . . Influence Decreases 555 | . . . . . 281 114 160 Entered New Map 106 | . . . . . . 54 52 Time Decay 302 | . . . . . 184 20 98 Lost Part 147 | . . . . . 97 40 10 Squads Dispatched 8 | . . . . . 5 3 . Investigation 3 | . . . . . 2 1 . Extermination 2 | . . . . . 2 . . Reinforcement 1 | . . . . . 1 . . Assault 2 | . . . . . . 2 . Garrison . | . . . . . . . . Intercept . | . . . . . . . . Searches Triggered . | . . . . . . . . Construction Impeded 1 | . . . . . 1 . . Haulers Reinforced . | . . . . . . . . Active Scanning Responses . | . . . . . . . . Cargo Convoy Interrupts . | . . . . . . . . Stealth | -11 -10 -9 -9 -8 -7 -6 -6 --------- Run | Yrd Mat Mat Min Mat Fac Fac Low Distress Signals 1 | . . . . . 1 . . Communications Jammed . | . . . . . . . . Distress Signals . | . . . . . . . . Times Spotted 29 | . 2 . . 4 19 1 3 Peak Tracking Total 6 | . 2 . . 4 6 1 1 Tactical Retreats 2 | . . . . . 2 . . Traps | -11 -10 -9 -9 -8 -7 -6 -6 ------- Run | Yrd Mat Mat Min Mat Fac Fac Low Traps Triggered 1 | . . . . . 1 . . Indirectly . | . . . . . . . . Trap Hack Attempts . | . . . . . . . . Triggered . | . . . . . . . . Disarmed . | . . . . . . . . Reprogrammed . | . . . . . . . . Reused . | . . . . . . . . Traps Extracted . | . . . . . . . . Installed . | . . . . . . . . Triggered . | . . . . . . . . Machines | -11 -10 -9 -9 -8 -7 -6 -6 ---------- Run | Yrd Mat Mat Min Mat Fac Fac Low Machines Disabled 1 | . . . . . . 1 . Max in Single Turn 1 | . . . . . . 1 . Garrison Access 1 | . . . . . . 1 . Machines Repaired . | . . . . . . . . Machines Dismantled . | . . . . . . . . Machines Sabotaged . | . . . . . . . . Overloaded Fab Kills . | . . . . . . . . Hacking | -11 -10 -9 -9 -8 -7 -6 -6 --------- Run | Yrd Mat Mat Min Mat Fac Fac Low Machines Accessed 8 | . . . . . 6 1 1 Terminals 2 | . . . . . 2 . . Fabricators 3 | . . . . . 3 . . Repair Stations . | . . . . . . . . Recycling Units . | . . . . . . . . Scanalyzers 1 | . . . . . 1 . . Garrison Access 1 | . . . . . . 1 . Total Hacks 23 | . . . . . 19 3 1 Successful 10 | . . . . . 9 . 1 Failed 12 | . . . . . 9 3 . Catastrophic 2 | . . . . . 1 1 . Database Lockouts 1 | . . . . . 1 . . Manual 4 | . . . . . 4 . . Terminals 6 | . . . . . 6 . . Fabricators 5 | . . . . . 5 . . Repair Stations . | . . . . . . . . Recycling Units . | . . . . . . . . Scanalyzers 8 | . . . . . 8 . . Garrison Access 3 | . . . . . . 3 . Terminal Hacks 1 | . . . . . . . 1 Open Door 1 | . . . . . . . 1 Fabricator Hacks 1 | . . . . . 1 . . Network Status 1 | . . . . . 1 . . Repair Station Hacks . | . . . . . . . . Recycling Unit Hacks . | . . . . . . . . Scanalyzer 6 | . . . . . 6 . . Insert Component 1 | . . . . . 1 . . Analyze 1 | . . . . . 1 . . Retrieve Study 4 | . . . . . 4 . . Garrison Access Hacks . | . . . . . . . . Unauthorized Hacks 2 | . . . . . 2 . . Terminals 1 | . . . . . 1 . . Botnet 1 | . . . . . 1 . . Fabricators 1 | . . . . . 1 . . Download 1 | . . . . . 1 . . Repair Stations . | . . . . . . . . Recycling Units . | . . . . . . . . Scanalyzers . | . . . . . . . . Garrison Access . | . . . . . . . . Data Cores Recovered . | . . . . . . . . Used . | . . . . . . . . Hacking Detections 5 | . . . . . 4 1 . Full Trace Events 2 | . . . . . 1 1 . Feedback Events . | . . . . . . . . Feedback Blocked . | . . . . . . . . Robot Schematics Acquired . | . . . . . . . . Robots Built . | . . . . . . . . Authchips . | . . . . . . . . Time . | . . . . . . . . Total Robot Build Rating . | . . . . . . . . Part Schematics Acquired 1 | . . . . . 1 . . Parts Built . | . . . . . . . . Authchips . | . . . . . . . . Time . | . . . . . . . . Total Part Build Rating . | . . . . . . . . Part Studies Acquired 4 | . . . . . 4 . . Parts Repaired . | . . . . . . . . Time . | . . . . . . . . Parts Recycled . | . . . . . . . . Recycled Matter . | . . . . . . . . Retrieved Matter . | . . . . . . . . Retrieved Components . | . . . . . . . . Parts Scanalyzed 1 | . . . . . 1 . . Part Schematics Acquired 1 | . . . . . 1 . . Parts Damaged 1 | . . . . . 1 . . Bothacking | -11 -10 -9 -9 -8 -7 -6 -6 ------------ Run | Yrd Mat Mat Min Mat Fac Fac Low Used RIF Installer . | . . . . . . . . Robots Hacked . | . . . . . . . . Non-combat . | . . . . . . . . Combat . | . . . . . . . . Robot Hacks Applied . | . . . . . . . . Relay Couplers Released 1 | . . . . . . 1 . Machine Destruction 1 | . . . . . . 1 . Fabnet Peak Effective % . | . . . . . . . . Robots Rewired 1 | . . . . . 1 . . Allies Hacked . | . . . . . . . . Hacks Repelled . | . . . . . . . . Allies | -11 -10 -9 -9 -8 -7 -6 -6 -------- Run | Yrd Mat Mat Min Mat Fac Fac Low Total Allies 1 | . . . . . 1 . . Largest Group 1 | . . . . . 1 . . Highest-Rated Group 12 | . . . . . 12 . . Highest-Rated Ally 12 | . . . . . 12 . . Total Orders . | . . . . . . . . Ally Attacks 5 | . . . . . 5 . . Total Damage 69 | . . . . . 69 . . Kills . | . . . . . . . . Allies Corrupted . | . . . . . . . . Allies Melted . | . . . . . . . . Intel | -11 -10 -9 -9 -8 -7 -6 -6 ------- Run | Yrd Mat Mat Min Mat Fac Fac Low Active Infowar (turns) 233 | . 30 40 80 55 28 . . Optics 233 | . 30 40 80 55 28 . . Robot Analysis Total . | . . . . . . . . Derelict Logs Recovered 1 | . . . 1 . . . . Drone Launches . | . . . . . . . . Drone Recoveries . | . . . . . . . . Exploration | -11 -10 -9 -9 -8 -7 -6 -6 ------------- Run | Yrd Mat Mat Min Mat Fac Fac Low Turns Passed 1334 | 19 72 40 80 55 745 51 272 Spaces Moved 1271 | 35 128 76 160 125 438 45 264 Core 675 | 35 128 76 160 8 4 . 264 Treads . | . . . . . . . . Legs . | . . . . . . . . Wheels 416 | . . . . . 371 45 . Hover . | . . . . . . . . Flight 180 | . . . . 117 63 . . Fastest Speed 32 | 50 50 50 50 35 32 80 50 Average Speed 74 | 50 50 50 50 35 111 93 67 Slowest Speed 155 | 50 50 50 50 50 155 95 100 Overloaded Moves . | . . . . . . . . Propulsion Burnouts . | . . . . . . . . Robots Hopped 1 | . . . . 1 . . . Potential Cave-ins . | . . . . . . . . Cave-ins Triggered . | . . . . . . . . Exploration Rate (%) 20 | 3 29 12 55 14 14 2 33 Regions Visited 7 Branch Regions 2 Pre-discovered Areas 1 | . . . 1 . . . . Known Exits Taken . | . . . . . . . . Unknown Exits Taken 7 | 1 1 1 1 1 1 1 . Scrap Searched 3 | . . . . . . . 3 Spaces Dug 3 | . . . . . 3 . . Terrain Destroyed 4 | . . . . . 4 . . Melee 3 | . . . . . 3 . . Projectile 1 | . . . . . 1 . . AOE . | . . . . . . . . Terrain Rammed . | . . . . . . . . Walls Destroyed . | . . . . . . . . Machines Disabled . | . . . . . . . . Actions | -11 -10 -9 -9 -8 -7 -6 -6 --------- Run | Yrd Mat Mat Min Mat Fac Fac Low Total 1531 | 36 134 78 159 132 597 48 347 Wait 49 | . . . . . 49 . . Move 1264 | 34 127 76 159 122 437 45 264 Hop 1 | . . . . 1 . . . Pick Up 16 | 2 4 . . 3 5 . 2 Fast Attach 23 | . 2 . . 3 17 . 1 Attach 8 | . . . . 1 5 . 2 Detach 1 | . . . . . . . 1 Swap 1 | . . . . . 1 . . Drop 16 | . 1 2 . 2 7 . 4 Fire 33 | . . . . . 25 . 8 Melee 43 | . . . . . 40 3 . Ram 65 | . . . . . . . 65 Kick . | . . . . . . . . Crush . | . . . . . . . . Escape Stasis . | . . . . . . . . Rewire 11 | . . . . . 11 . . Trap . | . . . . . . . . Miscellaneous . | . . . . . . . . Route ------- -11/Scrapyard -10/Materials -9/Materials -9/Mines -8/Materials -7/Factory -6/Factory -6/Lower Caves (discovered 1 exit: [*Zio]) History --------- Turn | Location | Event 14 | -11/Scrapyard | Discovered new exit (range 13) 20 | -11/Scrapyard | Entered Materials 87 | -10/Materials | Discovered new exit (range 3) 92 | -10/Materials | Entered another Materials area 92 | -9/Materials | Evolved 2 slots: Power x2 128 | -9/Materials | Discovered new exit (range 3) 132 | -9/Materials | Entered Mines 202 | -9/Mines | Discovered new exit (range 9) 212 | -9/Mines | Entered Materials 212 | -8/Materials | Evolved 2 slots: Power x2 262 | -8/Materials | Discovered new exit (range 11) 267 | -8/Materials | Entered Factory 267 | -7/Factory | Evolved 2 slots: Power x2 570 | -7/Factory | Build established: Generator-Mutant 627 | -7/Factory | Central database locked down 855 | -7/Factory | Lost 5 parts (2p1n1u1w) 927 | -7/Factory | Discovered new exit (range 14) 1012 | -7/Factory | Entered another Factory area 1012 | -6/Factory | Evolved 2 slots: Propulsion x2 1043 | -6/Factory | Discovered new exit (range 16) 1063 | -6/Factory | Entered Lower Caves 1069 | -6/Lower Caves | Released all parts (2) 1093 | -6/Lower Caves | Lost 4 parts (1p1n2u) 1199 | -6/Lower Caves | Core integrity fell below 50% 1227 | -6/Lower Caves | Core integrity fell below 20% 1241 | -6/Lower Caves | System corruption reached 10% 1261 | -6/Lower Caves | Build established: Mutant 1318 | -6/Lower Caves | A Derelict revealed a hidden shortcut to a safe place 1335 | -6/Lower Caves | Destroyed by H-66 Slayer with Gauss Rifle Last Messages --------------- 01239_ G-50 Soldier system terminally corrupted. 01239_ Adv. Heat Sink fried. 01239_ Carbon-fiber Leg fried. 01240_ Acquired Corrupted Hvy. Laser. 01240_ Integrated Corrupted Hvy. Laser (+12). 01241_ Acquired 3 matter. 01243_ Acquired 4 matter. 01245_ System corrupted: Matter fused (-10). 01245_ Acquired 5 matter. 01262_ DB&CA&&EC QN8SKBFU4:=AK#Y0HW&ZSNBYC # 01289_ System corrupted: Component data lost. 01315_ 4GHGJC3JA5UPIY/I #### #?? ?????? | | ???????# #??# #????? #???? ?????? | | ???????# ### #### #?#????? ?? #????# ?????? | | ???????# ## #### ### ???????? #???? ?????? | | ???????# ## #? ??????? #???? ?????? | | ???????#### #### # #### ??????# #???? ?????? | | ??????????# #??# ##??# ???????# #???? #????? | | ?????????## #### #??? ???????# #???# #????# | | ???####?## ## #??? ????### ##### ????# | | ???#"""## ### #???# #????# # ??## | | ???#""" ### #???# #????# "" ?## | | ???#""" # #???# ###### """" #?# | | ???#""" # ##### "" ## ### | | ???#"""## ### "" ## ## | | ???#### ## """" ## # | | ??????# ####### """" # ### ## | | ??????## #????## """" #?# #? | | ???????# ## #????## !/= #?## #? | | ???????## ### #?????# [%=!# #?# #? | | ????????##### #?# #?????## ####### ## ? | | ????????????# ##?# #?????# ????? ### | | ????????????# ##??# #?????####????## ? | | ????????????# #???# ######??????????????# ### #? | | ????????????# #???# ##???????????????????# #?? | +----------------------------------------------------+ Best States ------------- Heat Dissipation 62 Energy Generation 70 Energy Capacity 975 Matter Stores 300 Matter Capacity 300 Sight Range 18 Terrain Scan Density 10 Additional Mass Support 9 Armor Coverage 150 Weapon Shielding 66 Evasion (%) 63 Recoil Reduction 1 Defensive Hacking 10 Item Schematics ----------------- Imp. VTOL Module | -7/Factory | Scanalyzed Robot Schematics ------------------ None Fabricated ------------ Nothing Repaired ---------- Nothing Studied --------- Arm. Wheel | -7/Factory | Hacked Wheel | -7/Factory | Hacked Nuclear Core | -7/Factory | Hacked Powered Hammer | -7/Factory | Hacked Alien Tech Used ----------------- None Achievements -------------- None Challenges ------------ None Game ------ Seed HeatFusionDevice Manual? 0 Play Time 00:25:11 Cumulative 51.5 hours Start 2026.02.17 @ 23:10:08 End 2026.02.17 @ 23:33:02 Sessions 1 Manual Loads 0 Difficulty Rogue Special Mode None Game No. 161 Rogue 161 Adventurer 0 Explorer 0 Win Type - Total 0 Types 0/0/0/0/0/0/0/0/0/0 Lore% 59 Gallery% 34 Achievement% 32 Wizard Run 0 Options --------- Layout 0 ASCII 0 Keyboard 0 Movement Arrows Keybinds 0 Fullscreen 1 Font 24/Terminus Map View 64x52 Zoom Use 0% Tactical HUD 1 Map Filters NONE Filters NONE Steam 1 RUN: eab9d655-cb86-43d4-b166-fdfb0975b982